bitfinex/quotes_ETHUSD_20250814
["timestamp","ask_amount","ask_price","bid_price","bid_amount"]
[1755175250797,0.4511,4601.1,4598.2,3.49654356]
[1755175251007,0.7300603,4600.9,4598.8,2.17446479]
[1755175251249,0.7300603,4600.9,4598.9,6.512]
[1755175251428,0.1088,4599.0,4598.9,6.512]
[1755175251585,0.1088,4599.0,4598.3,6.512]
[1755175251586,0.4638,4599.0,4598.3,6.512]
[1755175251791,2.7156,4599.0,4597.8,6.512]
[1755175252142,2.7156,4599.0,4596.5,0.90147457]
[1755175252440,0.4638,4598.9,4596.6,6.512]
[1755175252645,0.4638,4598.9,4596.4,0.0008]
[1755175252824,0.4638,4599.8,4596.8,3.0]
[1755175252990,0.4638,4599.8,4597.8,3.0]
[1755175253194,0.4638,4599.8,4597.0,2.17531284]
[1755175253511,1.1938603,4599.8,4597.1,6.72953128]
[1755175253826,2.2518,4599.7,4597.2,6.512]
[1755175254036,0.4638,4599.6,4597.2,8.68721812]
[1755175254208,0.4638,4599.6,4597.1,0.21833128]
[1755175254209,0.1,4599.4,4597.3,6.513]
[1755175254406,2.7156,4599.3,4597.3,6.513]
[1755175254595,2.7156,4599.3,4597.4,0.67313313]
[1755175255029,2.7156,4599.3,4597.9,2.17489055]
[1755175255215,2.2518,4600.6,4597.5,2.17509416]
[1755175255545,2.2518,4600.6,4599.4,2.17418652]
[1755175255828,0.4638,4600.9,4599.9,2.17392351]
[1755175255992,0.7300603,4601.5,4600.0,6.73039235]
[1755175256192,2.2518,4601.6,4600.0,0.21739235]
[1755175256408,2.2518,4601.6,4600.1,6.513]
[1755175256636,0.7300603,4601.6,4600.4,2.17372402]
[1755175256797,0.7300603,4601.6,4600.3,3.0]
[1755175256798,1.1938603,4601.8,4598.4,0.4591]
[1755175257003,0.7300603,4601.1,4599.8,6.513]
[1755175257199,0.7300603,4600.8,4599.8,6.513]
[1755175257394,0.7300603,4600.4,4599.8,0.6513]
[1755175257603,0.7300603,4600.3,4598.6,0.651854]
[1755175257913,0.6125603,4599.9,4598.6,0.651854]
[1755175258255,1.08884315,4599.4,4598.6,0.651854]
[1755175258437,1.08884315,4599.5,4597.1,0.0008]
[1755175258600,0.4638,4599.8,4598.0,6.513]
[1755175258801,0.4364726,4601.2,4598.0,6.513]
[1755175259002,0.38462541,4601.1,4598.0,7.1643]
[1755175259232,1.44886956,4601.7,4598.5,2.17461727]
[1755175259534,3.0,4602.2,4598.0,0.6513]
[1755175259535,0.4364726,4602.2,4598.0,0.6513]
[1755175259756,1.81108695,4602.4,4598.0,0.6513]
[1755175259757,2.17303424,4601.9,4598.0,0.6513]
[1755175260046,2.289,4601.5,4597.2,0.652053]
[1755175260205,2.17372472,4600.4,4597.2,0.652053]
[1755175260404,0.21737247,4600.3,4597.2,0.652053]
[1755175260603,2.17417579,4599.5,4597.2,0.652053]
[1755175260808,0.4638,4599.4,4595.9,0.76216272]
[1755175261128,2.785,4599.3,4595.9,0.76216272]
[1755175261301,2.7156,4599.2,4595.9,0.76216272]
[1755175261611,2.17391668,4600.0,4595.9,0.76216272]
[1755175261612,1.81108695,4602.1,4595.9,0.76216272]
[1755175261813,0.1088,4597.2,4596.0,2.7748]
[1755175262011,2.2518,4599.7,4596.0,2.7748]
[1755175262012,0.1088,4596.3,4596.0,2.7748]
[1755175262224,0.1088,4596.3,4596.2,4.95151036]
[1755175262426,0.1088,4596.3,4596.2,7.95151036]
[1755175262628,0.1088,4596.9,4596.2,2.7758]
[1755175262813,0.4638,4600.5,4596.2,2.7758]
[1755175263018,2.2518,4600.4,4596.2,2.7758]
[1755175263227,2.2518,4600.4,4596.4,2.17561569]
[1755175263416,0.4638,4600.3,4596.5,2.7748]
[1755175263625,0.4638,4600.3,4596.6,2.17552103]
[1755175263806,0.4638,4600.3,4596.2,2.17670074]
[1755175263807,5.2518,4600.2,4596.2,0.001]
[1755175264027,2.17424746,4599.3,4596.2,0.0018]
[1755175264232,2.17477225,4598.2,4596.2,0.0018]
[1755175264431,3.4638,4598.1,4596.2,0.0018]
[1755175264935,0.7156,4598.2,4596.2,0.0018]
[1755175265146,2.17380271,4600.3,4596.2,0.0018]
[1755175265347,0.21738027,4600.2,4596.2,0.4609]
[1755175265531,1.81108695,4602.2,4596.2,0.4609]
[1755175265532,4.619,4600.3,4596.4,5.17561569]
[1755175265858,5.212,4601.1,4596.5,2.7748]
[1755175265859,6.516,4600.2,4596.5,2.7748]
[1755175266368,2.17394291,4600.0,4596.5,2.7748]
[1755175266518,2.17405764,4599.7,4596.5,2.7748]
[1755175266859,0.15884603,4601.0,4596.2,0.0018]
[1755175267159,3.0,4599.4,4596.2,0.0018]
[1755175267320,3.0,4599.0,4596.2,0.0018]
[1755175267518,2.17452758,4598.7,4596.2,0.0018]
[1755175267723,2.17457487,4598.6,4596.2,0.0018]
[1755175267949,1.1422,4598.9,4596.2,0.0018]
[1755175268152,3.0,4598.8,4596.2,0.0018]
[1755175268354,2.17462581,4598.5,4596.2,0.0018]
[1755175268556,2.17434813,4599.1,4596.2,0.0018]
[1755175268857,0.16191664,4601.0,4596.2,0.0018]
[1755175269018,6.516,4600.5,4596.3,2.7748]
[1755175269219,6.516,4600.4,4596.4,3.4591]
[1755175269456,0.144,4600.7,4596.5,2.3157]
[1755175269965,7.5152,4600.6,4596.2,0.29588064]
[1755175270123,10.162,4600.5,4596.2,0.0018]
[1755175270327,2.17461779,4598.6,4596.2,0.0018]
[1755175270523,0.4638,4598.5,4596.2,0.0018]
[1755175270753,9.517,4598.4,4596.2,0.0018]
[1755175270953,3.0,4598.2,4596.2,0.0018]
[1755175271158,0.4638,4599.3,4596.2,0.0018]
[1755175271345,0.4638,4599.3,4596.3,4.95044598]
[1755175271551,0.02717863,4599.2,4596.5,2.17556102]
[1755175271861,0.02717568,4599.7,4596.7,3.0]
[1755175272065,0.4638,4600.1,4596.9,3.0]
[1755175272361,5.214,4600.4,4597.8,2.17492803]
[1755175272577,5.214,4600.4,4597.5,2.3157]
[1755175272725,0.4638,4601.2,4597.7,3.0]
[1755175272924,0.02716387,4601.7,4598.8,2.17447625]
[1755175273277,0.4638,4601.6,4596.1,2.3167]
[1755175273441,1.462,4601.6,4596.9,2.17537905]
[1755175273811,1.48916446,4601.6,4596.8,2.3157]
[1755175273954,0.1088,4596.9,4596.8,2.3157]
[1755175274123,0.108,4596.9,4596.8,2.7748]
[1755175274326,0.02717509,4599.8,4596.8,2.7756]
[1755175274571,0.02717509,4599.8,4596.9,0.27756]
[1755175274778,2.17424395,4599.3,4596.9,0.27756]
[1755175275080,3.49097863,4599.2,4596.8,0.0008]
[1755175275255,2.17467757,4598.4,4596.8,0.0008]
[1755175275561,2.17495673,4597.8,4596.8,0.0008]
[1755175275744,0.4909875,4597.7,4596.8,0.0008]
[1755175275945,6.2872,4597.6,4596.8,0.0008]
[1755175276162,2.17537905,4596.9,4596.8,0.0008]
[1755175276390,5.66637128,4596.9,4596.8,0.0008]
[1755175276537,13.32128608,4596.9,4596.8,0.0008]
[1755175276866,13.1457139,4596.9,4596.8,0.0008]
[1755175277175,6.6287139,4596.9,4596.8,0.0008]
[1755175277323,12.97880687,4596.9,4596.8,0.0008]
[1755175277527,5.7311738,4596.9,4596.8,0.0008]
[1755175277758,2.63917905,4596.9,4596.8,0.0008]
[1755175277977,13.18357128,4596.9,4596.8,0.0008]
[1755175278258,11.69437905,4596.9,4596.8,0.0008]
[1755175278460,5.17537905,4596.9,4596.8,0.0008]
[1755175278782,11.69437905,4596.9,4596.8,0.0008]
[1755175278997,5.214,4597.0,4596.8,0.0008]
[1755175278998,0.4888125,4597.0,4596.8,0.0008]
[1755175279265,0.02719223,4596.9,4596.8,0.0008]
[1755175279479,6.519,4597.2,4596.8,0.0008]
[1755175279630,0.02719105,4597.1,4596.8,0.0008]
[1755175280029,6.519,4597.0,4596.2,0.001]
[1755175280236,0.02719223,4596.9,4596.2,0.001]
[1755175280441,0.02719282,4596.8,4596.3,0.20188169]
[1755175280679,2.1483672,4596.6,4596.4,0.20188169]
[1755175280893,6.519,4596.8,4596.2,0.001]
[1755175281196,0.66827708,4596.8,4596.3,0.20188332]
[1755175281483,0.201882,4597.8,4596.4,0.20188332]
[1755175281688,3.0,4596.8,4596.2,0.001]
[1755175281870,2.33476608,4599.2,4596.3,0.20182241]
[1755175281871,0.201883,4598.5,4596.3,0.20182241]
[1755175282187,0.16044233,4599.2,4597.1,0.0672]
[1755175282388,6.519,4599.2,4597.2,2.93792241]
[1755175282585,6.519,4599.2,4597.2,2.7861]
[1755175282882,6.519,4599.2,4597.2,0.4454]
[1755175282883,2.17433845,4599.1,4597.2,0.4454]
[1755175283038,0.1588633,4599.2,4597.2,0.4454]
[1755175283232,6.519,4599.9,4597.3,2.36245189]
[1755175283437,0.1393,4601.5,4597.4,0.4454]
[1755175283637,0.5217,4601.1,4597.4,0.4454]
[1755175283837,3.0,4600.9,4597.5,2.3407]
[1755175284082,0.5217,4601.1,4597.6,0.4454]
[1755175284439,0.1088,4597.7,4597.6,0.02255047]
[1755175284673,2.17566303,4596.3,4596.2,0.001]
[1755175285252,3.0,4596.7,4596.2,0.001]
[1755175285440,2.17566303,4596.3,4596.2,0.001]
[1755175286239,2.17571036,4596.2,4596.1,0.001]
[1755175286577,2.887,4596.2,4596.1,0.001]
[1755175286782,8.06271036,4596.2,4596.1,1e-08]
[1755175287541,11.69571036,4596.2,4596.1,1e-08]
[1755175287963,5.17571036,4596.2,4596.1,1e-08]
[1755175288167,3.0,4596.2,4596.1,1e-08]
[1755175288712,2.17538352,4596.9,4596.1,1e-08]
[1755175288962,2.17522005,4597.3,4596.1,1e-08]
[1755175289079,0.1658521,4597.7,4596.1,1e-08]
[1755175289281,6.52,4597.6,4596.1,1e-08]
[1755175289985,0.4684,4598.4,4595.2,0.39740001]
[1755175290307,0.2887,4598.3,4595.3,0.27381]
[1755175290503,0.087013,4598.9,4596.1,0.001]
[1755175290715,0.002,4596.9,4596.2,2.3407]
[1755175290868,2.17344796,4601.0,4596.2,2.3407]
[1755175290869,2.17377127,4600.3,4596.3,3.95627414]
[1755175291073,2.17377127,4600.3,4596.4,5.3407]
[1755175291273,6.52,4600.2,4596.5,2.36245568]
[1755175291470,7.172,4600.1,4596.6,3.32969732]
[1755175291674,2.17405589,4599.7,4596.7,2.3407]
[1755175291874,6.52,4599.9,4596.7,2.3407]
[1755175292119,3.0,4599.8,4596.8,0.2116]
[1755175292323,3.0,4599.6,4596.8,0.2116]
[1755175292501,2.17382167,4600.2,4596.9,4.51606887]
[1755175292813,0.26422217,4600.1,4597.0,3.02596689]
[1755175293009,0.26422217,4600.1,4597.1,0.2128]
[1755175293212,0.26422217,4600.1,4597.1,2.5535]
[1755175293410,0.26422217,4600.1,4597.2,0.2131]
[1755175293573,2.17405212,4599.8,4597.2,0.2131]
[1755175293772,2.17364421,4600.6,4597.2,0.2131]
[1755175293998,3.0,4600.4,4597.2,0.2131]
[1755175294190,2.4186,4600.9,4597.2,0.2131]
[1755175294396,2.17410595,4599.6,4597.2,0.2131]
[1755175294600,2.17396642,4599.9,4597.3,0.25538]
[1755175294784,0.1088,4597.3,4597.1,1.80998]
[1755175295110,0.1088,4597.3,4596.3,0.93451751]
[1755175295274,2.17419663,4599.4,4596.3,0.93451751]
[1755175295478,0.1088,4596.4,4596.3,0.93451751]
[1755175296497,0.4684,4600.2,4596.3,0.93451751]
[1755175296498,0.4684,4600.2,4596.3,0.95627414]
[1755175296792,0.002,4600.0,4596.4,2.3407]
[1755175297000,3.0,4599.8,4596.4,2.3407]
[1755175297194,2.17410209,4599.6,4596.3,0.93451751]
[1755175297377,32.887,4599.5,4596.3,0.93451751]
[1755175297573,2.1742439,4599.3,4596.3,0.93451751]
[1755175297909,3.0,4599.1,4596.3,0.93451751]
[1755175298231,9.94673067,4599.0,4596.3,0.93451751]
[1755175298434,9.94673067,4599.0,4596.4,2.6162]
[1755175298435,2.36467215,4598.9,4596.4,2.6162]
[1755175298719,0.19022526,4598.9,4596.5,0.4454]
[1755175298931,0.19022526,4599.8,4596.6,2.3407]
[1755175299137,3.65862526,4599.9,4596.7,0.3615]
[1755175299358,0.79814779,4599.8,4596.8,2.61092]
[1755175299542,0.60792253,4599.8,4596.9,0.3601]
[1755175299740,3.4684,4599.7,4596.9,0.3601]
[1755175300060,0.002,4600.0,4597.0,2.6789]
[1755175300205,0.002,4600.0,4597.1,0.35565284]
[1755175300405,0.002,4600.0,4597.2,2.61033528]
[1755175300912,0.002,4600.0,4597.3,0.3013]
[1755175301106,0.002,4600.0,4597.4,2.3407]
[1755175301307,0.002,4600.0,4597.5,0.3298]
[1755175301751,0.002,4600.0,4597.6,2.36245047]
[1755175301912,0.002,4600.0,4597.7,0.66852505]
[1755175302243,0.002,4600.0,4597.8,2.6787]
[1755175302707,2.17591793,4600.0,4597.8,2.6787]
[1755175302906,2.17412814,4599.6,4597.8,2.6787]
[1755175303145,0.002,4600.0,4597.8,2.6787]
[1755175303349,0.002,4600.0,4597.8,2.3407]
[1755175303644,0.002,4600.0,4597.9,0.26774]
[1755175303834,2.17415884,4599.5,4597.8,2.3407]
[1755175304236,2.1739823,4599.9,4597.8,2.3407]
[1755175304547,2.1739823,4599.9,4597.9,0.20044658]
[1755175304548,2.4186,4599.8,4597.9,0.20044658]
[1755175304723,2.26559486,4599.6,4598.0,0.20044658]
[1755175304920,5.3332867,4599.9,4596.3,0.93451751]
[1755175304921,2.17468962,4598.4,4598.1,0.20044658]
[1755175305119,4.44035889,4598.2,4596.3,0.93451751]
[1755175305332,2.26559486,4597.7,4596.3,0.93451751]
[1755175305645,2.17490593,4597.9,4596.1,0.001]
[1755175305948,2.17504752,4597.7,4596.1,0.001]
[1755175306255,2.17495323,4597.8,4596.1,0.001]
[1755175306404,0.86929532,4597.7,4596.1,0.001]
[1755175306747,0.1088,4596.2,4596.1,0.001]
[1755175306920,0.1088,4596.2,4596.1,0.4449]
[1755175307125,0.1088,4596.2,4596.1,2.7856]
[1755175307434,0.08023785,4596.2,4596.1,2.7856]
[1755175308810,0.08023785,4596.2,4596.1,0.001]
[1755175309014,0.19096756,4597.6,4596.1,0.001]
[1755175309231,0.86196432,4597.5,4596.1,0.001]
[1755175309441,0.19096756,4597.4,4596.1,0.001]
[1755175309647,0.19096756,4597.3,4596.1,0.051]
[1755175309955,2.4186,4599.5,4596.2,2.7844]
[1755175310272,0.19110243,4599.4,4596.3,0.442]
[1755175310460,2.17441513,4599.0,4596.4,0.28337]
[1755175310616,0.19110243,4598.9,4596.5,0.4396]
[1755175310964,0.19110243,4598.8,4596.5,0.4396]
[1755175311164,6.519,4599.3,4596.5,0.4396]
[1755175311330,0.19132751,4599.2,4596.5,0.4396]
[1755175311547,0.42788526,4599.1,4596.6,2.3909]
[1755175311744,2.17465891,4598.5,4596.6,2.3909]
[1755175311944,0.19132751,4598.4,4596.7,0.4355]
[1755175312145,0.19132751,4598.3,4596.3,0.001]
[1755175312349,0.19132751,4598.2,4596.3,0.001]
[1755175312546,0.19132751,4598.1,4596.3,0.2912]
[1755175312843,0.19132751,4598.0,4596.3,0.2912]
[1755175313031,0.19132751,4597.9,4596.3,0.2912]
[1755175313224,2.3666,4599.0,4596.3,0.2912]
[1755175313479,0.19131161,4598.9,4596.4,2.87175615]
[1755175313627,0.569,4600.1,4596.5,3.9905578]
[1755175313830,0.1913794,4600.0,4596.6,2.8476]
[1755175314060,0.1913794,4599.9,4596.7,3.02175473]
[1755175314369,2.289,4599.3,4596.8,2.85]
[1755175314717,2.289,4599.0,4596.3,0.001]
[1755175314860,2.289,4598.8,4596.3,0.001]
[1755175315067,2.289,4598.6,4596.3,0.001]
[1755175315362,0.82243794,4598.9,4596.3,0.001]
[1755175315363,11.7433794,4598.5,4596.3,0.001]
[1755175315587,2.289,4598.3,4596.3,0.001]
[1755175315790,2.289,4598.1,4596.3,0.001]
[1755175315999,6.7103794,4598.2,4596.3,0.001]
[1755175316000,2.289,4597.7,4596.3,0.001]
[1755175316208,2.289,4597.5,4596.3,0.001]
[1755175316421,0.1913794,4597.4,4596.3,0.001]
[1755175316564,0.1913794,4597.3,4596.3,0.001]
[1755175316764,0.1913794,4597.2,4596.3,0.001]
[1755175316997,2.17533173,4597.0,4596.3,0.001]
[1755175317298,7.38141734,4597.1,4596.3,0.001]
[1755175317299,0.1913794,4596.9,4596.3,0.001]
[1755175317501,0.1913794,4596.8,4596.3,0.001]
[1755175317687,0.10020944,4596.7,4596.3,0.001]
[1755175317893,0.3774,4597.6,4596.3,0.001]
[1755175317894,2.17480335,4598.2,4596.3,0.001]
[1755175318062,2.17561569,4596.4,4596.3,1e-08]
[1755175318403,2.17577228,4596.1,4595.8,0.001]
[1755175318610,7.46485239,4595.9,4595.8,0.001]
[1755175318901,2.28465239,4595.9,4595.8,0.001]
[1755175319107,0.1088,4595.9,4595.8,0.001]
[1755175319305,8.80365239,4595.9,4595.8,0.001]
[1755175319609,5.80247747,4595.9,4595.8,0.001]
[1755175319774,8.31627747,4595.9,4595.8,0.001]
[1755175320283,2.17585239,4595.9,4595.8,0.001]
[1755175320486,8.69585239,4595.9,4595.8,0.001]
[1755175320682,0.3774,4597.7,4595.8,0.001]
[1755175320907,6.52,4596.4,4595.8,0.001]
[1755175321108,2.1756842,4596.3,4595.8,0.001]
[1755175321413,5.3666,4597.3,4595.8,0.001]
[1755175321608,10.9666,4598.8,4595.8,0.001]
[1755175321782,2.3666,4599.0,4595.9,0.4564]
[1755175321982,2.17443301,4598.9,4595.9,0.4564]
[1755175322174,2.17454955,4598.7,4595.9,0.4564]
[1755175322371,2.17452799,4598.7,4595.9,0.4572]
[1755175322708,0.2174528,4598.6,4596.0,2.3909]
[1755175322908,2.17524935,4597.2,4595.9,0.0008]
[1755175323074,0.5948528,4598.6,4595.8,0.001]
[1755175323075,5.3666,4597.9,4595.8,0.001]
[1755175323275,2.3666,4597.9,4595.8,0.001]
[1755175323476,6.52,4597.8,4595.9,0.4591]
[1755175323691,2.17524066,4597.2,4595.9,0.4591]
[1755175323889,2.17532204,4597.1,4595.9,0.4591]
[1755175324089,3.0,4597.7,4595.8,0.001]
[1755175324301,2.744,4597.6,4595.8,0.001]
[1755175324500,3.0,4597.5,4595.8,0.001]
[1755175324677,2.17518978,4597.3,4595.8,0.001]
[1755175324877,6.52,4597.2,4595.8,0.001]
[1755175325213,3.0,4597.3,4595.8,0.001]
[1755175325415,5.216,4599.2,4595.8,0.001]
[1755175325583,2.17467666,4598.4,4595.9,2.85]
[1755175325784,6.52,4598.3,4596.0,0.4548]
[1755175325974,6.52,4598.3,4596.1,2.3909]
[1755175326179,3.0,4598.2,4596.0,0.4548]
[1755175326381,3.0,4598.4,4596.0,0.4548]
[1755175326574,3.0,4598.0,4596.0,0.4548]
[1755175326875,0.53666,4598.3,4596.0,0.4548]
[1755175327075,3.0,4598.1,4595.8,0.001]
[1755175327377,2.17585239,4595.9,4595.8,0.001]
[1755175327578,0.49944396,4600.0,4595.8,0.001]
[1755175327898,5.17481133,4598.1,4595.8,0.001]
[1755175328111,2.55179064,4599.0,4595.9,0.4591]
[1755175328432,2.17452758,4598.7,4595.9,0.4591]
[1755175328579,6.52,4598.8,4595.9,0.4591]
[1755175328779,2.17457487,4598.6,4595.9,0.4591]
[1755175329033,2.17485071,4598.1,4595.9,0.7442]
[1755175329230,3.0,4598.4,4595.9,0.4591]
[1755175329440,3.0,4597.9,4595.8,0.001]
[1755175329726,0.16449374,4598.9,4595.9,0.4591]
[1755175329888,6.521,4598.8,4595.9,2.85]
[1755175330229,6.7122972,4598.7,4596.0,0.4591]
[1755175330402,0.1912972,4598.6,4596.1,0.2851]
[1755175330610,3.1912972,4598.6,4596.2,0.4591]
[1755175330806,0.1912972,4598.5,4596.3,2.41265663]
[1755175331013,0.1912972,4599.6,4596.4,3.4591]
[1755175331212,6.521,4599.3,4596.5,2.85]
[1755175331526,0.19147453,4599.2,4596.6,0.74627562]
[1755175331731,6.521,4599.1,4596.7,2.85]
[1755175331930,0.1603435,4599.7,4596.7,2.85]
[1755175331931,0.19147453,4599.0,4596.7,2.3909]
[1755175332231,6.52,4599.0,4596.8,0.4591]
[1755175332396,2.17448029,4598.8,4596.8,0.4591]
[1755175332597,0.1088,4596.9,4596.8,0.4599]
[1755175332841,0.1088,4596.9,4596.8,2.8508]
[1755175333199,0.106,4599.9,4596.8,2.8508]
[1755175333402,0.002,4601.8,4598.6,0.1]
[1755175333600,0.1108,4601.4,4598.7,0.48084527]
[1755175333802,0.1108,4601.4,4598.8,2.3909]
[1755175334103,0.1108,4601.4,4598.9,3.74627453]
[1755175334300,0.002,4601.4,4599.1,3.0]
[1755175334501,0.002,4601.4,4599.3,3.0]
[1755175334704,0.002,4601.4,4599.4,5.04593298]
[1755175334925,0.002,4601.4,4599.5,2.85]
[1755175335135,0.002,4601.4,4599.6,0.7441]
[1755175335299,0.002,4601.4,4599.7,5.02400922]
[1755175335500,0.002,4601.4,4599.9,3.0]
[1755175335721,0.002,4601.4,4600.0,2.85]
[1755175335921,0.002,4601.4,4600.1,3.48083865]
[1755175336124,0.002,4601.8,4601.0,2.17339561]
[1755175336322,0.002,4601.8,4601.1,2.3909]
[1755175336522,0.002,4601.8,4600.2,0.58717386]
[1755175336523,0.002,4601.8,4598.9,2.67807453]
[1755175336732,0.002,4601.8,4599.4,0.4591]
[1755175337117,0.002,4601.8,4599.5,2.3909]
[1755175337335,2.17326663,4601.4,4599.0,0.4591]
[1755175337502,2.1733691,4601.2,4599.0,0.4591]
[1755175337706,0.19191877,4601.3,4599.0,0.4591]
[1755175338012,6.518,4603.3,4599.1,2.41264338]
[1755175338201,0.654068,4602.6,4599.5,2.17413082]
[1755175338403,0.002,4602.6,4602.4,2.1727777]
[1755175338602,0.002,4604.0,4602.4,2.1727777]
[1755175338603,0.002,4604.0,4602.5,2.87172732]
[1755175338847,0.002,4604.0,4602.6,0.4591]
[1755175339167,0.002,4605.4,4602.7,2.3909]
[1755175339307,0.3814,4605.4,4602.3,0.4591]
[1755175339505,2.3666,4605.3,4602.3,0.7441]
[1755175339837,8.8826,4605.3,4602.3,0.7441]
[1755175340021,3.57152624,4605.2,4601.4,0.4591]
[1755175340226,3.0,4605.0,4601.5,2.3909]
[1755175340448,0.002,4602.3,4601.6,0.4591]
[1755175341168,0.002,4602.3,4600.4,5.17371721]
[1755175341369,0.002,4602.3,4600.9,2.3909]
[1755175341685,0.4662,4605.0,4601.0,3.0]
[1755175341874,0.4662,4604.5,4601.1,2.3338]
[1755175342324,0.4662,4604.5,4601.2,2.17334608]
[1755175342521,0.4662,4604.5,4601.3,4.50708249]
[1755175342726,0.28092,4604.4,4601.4,2.80624076]
[1755175342922,6.514,4605.3,4601.4,2.78450825]
[1755175343147,2.8092,4605.2,4601.5,0.1316]
[1755175343360,3.0,4605.1,4601.4,1.77263806]
[1755175343690,3.0,4604.9,4601.5,0.02173204]
[1755175343830,0.4662,4605.0,4601.6,0.17951701]
[1755175344029,0.4662,4605.0,4601.8,2.17306076]
[1755175344231,2.343,4604.9,4601.3,0.0008]
[1755175344432,0.4662,4605.0,4601.8,2.17305386]
[1755175344668,0.4662,4605.0,4601.5,0.02173204]
[1755175344965,0.4662,4605.0,4601.8,0.02173062]
[1755175345163,0.002,4605.4,4601.8,0.02173062]
[1755175345323,0.002,4605.4,4602.8,2.17255353]
[1755175345526,0.002,4605.4,4602.9,4.75358094]
[1755175345749,0.002,4605.4,4602.9,2.58105535]
[1755175345962,0.002,4605.4,4601.8,2.17301698]
[1755175345963,0.002,4605.4,4602.7,2.17263451]
[1755175346149,0.002,4605.4,4601.4,6.513]
[1755175346150,0.002,4605.4,4601.6,2.17315716]
[1755175346340,0.002,4605.4,4601.7,0.02173109]
[1755175346540,0.002,4605.4,4601.8,0.21949355]
[1755175346878,0.002,4605.4,4601.9,0.02173015]
[1755175347029,0.002,4605.4,4602.0,0.02172968]
[1755175347530,0.002,4605.4,4601.4,2.709]
[1755175347869,0.4662,4605.3,4601.6,2.17315716]
[1755175348081,0.4662,4605.3,4601.4,2.709]
[1755175348082,0.4662,4605.3,4601.7,2.3375]
[1755175348258,0.4662,4605.3,4602.1,2.17290366]
[1755175348576,2.343,4605.2,4602.2,0.02542873]
[1755175348729,0.4662,4605.1,4601.8,0.23375]
[1755175348933,5.343,4605.0,4601.3,0.0008]
[1755175349157,9.3202,4604.9,4601.3,0.0008]
[1755175349383,2.1717413,4604.6,4601.3,0.0008]
[1755175349583,2.17228106,4603.5,4599.9,0.0048]
[1755175349782,3.0,4603.3,4599.9,0.0048]
[1755175350087,3.0,4603.1,4599.9,0.0048]
[1755175350387,0.0232,4601.8,4599.9,0.582542]
[1755175350588,2.8092,4601.7,4598.3,0.3212]
[1755175350795,3.4662,4601.6,4598.0,0.652019]
[1755175350956,2.17348005,4601.0,4598.0,0.652019]
[1755175351289,8.0172,4600.9,4597.4,0.3177]
[1755175351473,8.0172,4600.9,4597.7,2.17498123]
[1755175351803,7.551,4600.9,4597.8,3.34762275]
[1755175351958,5.208,4600.9,4597.9,2.8062]
[1755175352161,0.0232,4601.8,4598.1,2.17481133]
[1755175352378,0.0232,4601.8,4598.4,2.17466945]
[1755175352702,0.0232,4601.8,4597.8,0.51967322]
[1755175352703,0.0232,4601.8,4598.8,3.0]
[1755175352856,0.0232,4601.8,4601.6,2.17314759]
[1755175353053,0.0232,4601.8,4598.9,3.61915276]
[1755175353054,2.8112,4605.4,4601.7,2.82793109]
[1755175353256,2.8112,4605.4,4602.0,2.1729566]
[1755175353585,0.4662,4605.3,4602.2,2.17287384]
[1755175353754,0.4662,4605.3,4602.3,0.02172826]
[1755175353953,0.28112,4605.2,4602.4,3.30217283]
[1755175354389,0.1088,4602.5,4602.4,3.30217283]
[1755175354593,0.108,4602.5,4602.4,0.75637283]
[1755175354799,0.108,4602.5,4602.4,3.09017283]
[1755175354964,0.108,4602.5,4602.4,3.11190062]
[1755175355167,0.002,4605.4,4602.4,3.47513018]
[1755175355397,0.002,4605.4,4602.1,3.0]
[1755175355398,0.002,4605.4,4603.2,2.1723998]
[1755175355567,0.1088,4603.6,4603.4,2.17230742]
[1755175355776,0.1088,4603.6,4603.5,7.97066023]
[1755175356195,0.1088,4603.6,4603.5,2.7984]
[1755175356508,0.002,4605.4,4605.2,2.17145511]
[1755175356707,0.002,4605.4,4605.3,2.5649]
[1755175356866,0.002,4605.4,4605.3,5.5649]
[1755175357072,0.1108,4605.4,4605.3,2.5649]
[1755175357375,0.1108,4605.4,4605.3,2.58661411]
[1755175357569,0.1108,4605.4,4605.3,6.57957323]
[1755175357786,1e-08,4605.8,4605.7,2.17122261]
[1755175358022,2.343,4609.6,4605.8,3.0]
[1755175358318,2.343,4609.6,4605.9,3.01164084]
[1755175358481,2.343,4609.6,4606.0,5.6266]
[1755175358681,0.78703563,4609.5,4606.6,2.17077065]
[1755175358979,3.78703563,4609.5,4606.1,3.4724]
[1755175359186,2.8092,4609.4,4605.7,1.30626976]
[1755175359416,0.1088,4605.8,4605.7,1.30626976]
[1755175359756,0.1088,4605.8,4605.7,1.77386976]
[1755175359905,0.1088,4605.8,4605.7,1.30626976]
[1755175360103,0.1088,4605.8,4605.7,6.94559237]
[1755175360538,0.32083563,4609.5,4605.8,3.0]
[1755175360851,0.39915629,4609.8,4605.8,3.0]
[1755175360852,0.39915629,4609.8,4605.9,2.37179133]
[1755175361061,0.39915629,4609.8,4607.8,2.17021654]
[1755175361259,0.39915629,4609.8,4608.0,2.17013888]
[1755175361441,0.39915629,4609.8,4607.9,0.02170185]
[1755175361759,0.1088,4608.0,4607.0,0.74604472]
[1755175361938,0.1088,4607.9,4607.8,2.17023308]
[1755175362265,0.39915629,4609.8,4606.2,5.205]
[1755175362266,0.4662,4609.7,4606.2,5.205]
[1755175362443,0.4662,4609.7,4608.0,2.17012964]
[1755175362444,0.32083563,4609.6,4608.0,2.17012964]
[1755175362751,0.1088,4607.4,4607.3,2.1704686]
[1755175362962,0.1088,4607.4,4606.8,0.1088]